[Event "Galician-chT Honour Playoff 2022"]
[Site "Vilagarcia"]
[Date "2022.04.23"]
[Round "1"]
[White "Rodriguez Ferreiros, Andres"]
[Black "Del Prado Rodriguez, Xulio"]
[Result "0-1"]
[ECO "C89"]
[WhiteElo "2108"]
[BlackElo "2347"]
[Annotator "TA"]
[PlyCount "92"]
[EventDate "2022.04.23"]
[EventType "team-tourn"]
[EventCountry "ESP"]
[SourceTitle "playchess.com"]
[Source "ChessBase"]
[SourceQuality "1"]
[TimeControl "5400+30"]

{[%evp 24,92,22,24,60,51,73,68,71,32,14,14,22,16,14,38,16,33,36,31,31,28,25,24,34,14,8,0,0,0,0,0,0,0,0,0,0,0,0,0,0,0,0,0,0,0,0,0,0,-13,0,-770,-761,-631,-609,-562,-397,-390,-300,-1314,-1376,-1150,-1298,-1199,-1263,-1181,-1143,-1105,-1082,-866,-830]} 1. e4 {[%emt 0:00:04]} e5 {[%emt 0:00:11]} 2. Nf3 {[%emt 0:00:12]} Nc6 {[%emt 0:00:20]} 3. Bb5 {[%emt 0:00:47]} a6 {[%emt 0:00:11]} 4. Ba4 {[%emt 0:00:05]} Nf6 {[%emt 0:00:14]} 5. O-O {[%emt 0:00:22]} Be7 {[%emt 0:00:31]} 6. Re1 {[%emt 0:00:32]} b5 {[%emt 0:00:12]} 7. Bb3 {[%emt 0:00:04]} O-O {[%emt 0:00:15]} 8. c3 {[%emt 0:00:07]} d5 {[%emt 0:00:51]} 9. exd5 Nxd5 {[%emt 0:00:09]} 10. Nxe5 {[%emt 0:01:09]} Nxe5 {[%emt 0:00:34]} 11. Rxe5 {[%emt 0:00:03]} c6 {[%emt 0:00:18]} 12. g3 {[%emt 0:03:46] 12.d3 is a critical line.} Bd6 {[%emt 0:35:53]} 13. Re1 $1 {[%emt 0:06:27]} Qf6 {[%emt 0:09:03][%cal Od5f4] C89: Closed Ruy Lopez: Marshall Attack.} 14. d3 {[%emt 0:04:40]} Bf5 {[%emt 0:02:00]} 15. Nd2 {[%emt 0:05:53]} Bxd3 {[%emt 0:10:39] [#] White is slightly better.} 16. Ne4 $146 {[%emt 0:02:36]} ({Predecessor:} 16. Nf3 Bg6 17. Bxd5 cxd5 18. Qxd5 Bxg3 19. hxg3 Rfd8 20. Bg5 Rxd5 21. Bxf6 gxf6 22. a4 {1-0 (46) Schulz,G (2380)-Postolovsky,V (2276) ICCF email 2006}) 16... Bxe4 {[%emt 0:00:30]} 17. Rxe4 {[%emt 0:00:03]} Rae8 {[%emt 0:05:01]} 18. Bxd5 {[%emt 0:13:52]} cxd5 {[%emt 0:00:41]} 19. Rxe8 {[%emt 0:04:12]} Rxe8 {[%emt 0:00:08]} 20. Be3 {[%emt 0:17:26] Against Bc5} Rd8 {[%emt 0:08:01]} 21. Qg4 {[%emt 0:09:40]} Qe6 {[%emt 0:02:14]} 22. Qf3 {[%emt 0:04:49]} Qe4 {[%emt 0:07:18]} 23. Kg2 {[%emt 0:04:10]} f6 {[%emt 0:03:54]} 24. Rd1 {[%emt 0:01:00] [#] Qxe4 is the strong threat.} Bc7 {[%emt 0:00:31]} 25. h4 {[%emt 0:05:33]} h5 {[%emt 0:01:06]} 26. Rd4 {[%emt 0:01:57]} Qxf3+ {[%emt 0:00:26]} 27. Kxf3 $11 {[%emt 0:00:02][%mdl 4096] Endgame KRB-KRB} Kf7 {[%emt 0:00:41]} 28. a4 {[%emt 0:04:00]} Be5 {[%emt 0:02:09]} 29. Rb4 {[%emt 0:00:26]} Bd6 {[%emt 0:02:18]} 30. Rd4 {[%emt 0:02:45][%cal Bb4d4,Bd4d2,Bd2e2][%mdl 32]} Ke6 {[%emt 0:00:42]} 31. axb5 {[%emt 0:02:14]} axb5 {[%emt 0:00:06]} 32. Bf4 {[%emt 0:00:25]} Bc5 {[%emt 0:00:29]} 33. Rd2 {[%emt 0:01:24]} b4 {[%emt 0:02:47]} 34. Re2+ {[%emt 0:02:40]} Kf5 {[%emt 0:00:14]} 35. Be3 {[%emt 0:01:14]} Bd6 {[%emt 0:01:11]} 36. Bd4 {[%emt 0:01:27]} b3 {[%emt 0:01:01]} 37. Ke3 $2 {[%emt 0:01:50][%mdl 8192] [#]} (37. Rd2 $11) 37... Re8+ $1 $19 {[%emt 0:04:26]} 38. Kd3 {[%emt 0:00:01]} Rxe2 {[%emt 0:00:02]} 39. Kxe2 {[%emt 0:00:06] KB-KB} Ke4 {[%emt 0:00:37]} 40. Be3 {[%emt 0:01:04]} Be5 {[%emt 0:01:22][%cal Oe5c3] And now ...Bxc3! would win.} 41. Bd2 {[%emt 0:00:47]} (41. Bc1) 41... d4 {[%emt 0:00:36] Threatens to win with ...dxc3. Black is clearly winning.} 42. cxd4 {[%emt 0:00:57]} Bxd4 {[%emt 0:00:01]} 43. Bc1 {[%emt 0:00:13]} g6 {[%emt 0:00:59]} 44. f3+ {[%emt 0:00:12]} Kd5 {[%emt 0:00:06]} 45. Kd3 {[%emt 0:00:10]} Be5 {[%emt 0:00:10]} 46. g4 {[%emt 0:01:00]} f5 {[%emt 0:00:12] Weighted Error Value: White=0.38/Black=0.07 (flawless)} 0-1